[Event "RUS-ch Rapid 2021"]
[Site "Sochi"]
[Date "2021.10.13"]
[Round "10.15"]
[White "Bryakin, Mikhail"]
[Black "Sakaev, Konstantin"]
[Result "1-0"]
[ECO "A62"]
[WhiteElo "2498"]
[BlackElo "2603"]
[Annotator "RC"]
[PlyCount "65"]
[EventDate "2021.10.12"]
[EventType "swiss"]
[EventCountry "RUS"]
[SourceTitle "playchess.com"]
[Source "ChessBase"]
[SourceQuality "1"]
[TimeControl "900+10"]

1. d4 {[%emt 0:00:00]} Nf6 {[%emt 0:00:04]} 2. c4 {[%emt 0:00:08]} e6 {[%emt 0:
00:00]} 3. g3 {[%emt 0:00:02]} c5 {[%emt 0:00:18]} 4. d5 {[%emt 0:00:00]} exd5
{[%emt 0:00:00]} 5. cxd5 {[%emt 0:00:06]} d6 {[%emt 0:00:08]} 6. Nc3 {[%emt 0:
00:04]} g6 {[%emt 0:00:00]} 7. Bg2 {[%emt 0:00:00]} Bg7 {[%emt 0:00:00]} 8. Nf3
{[%emt 0:00:00]} O-O {[%emt 0:00:00]} 9. O-O {[%emt 0:00:03]} Nbd7 {[%emt 0:00:
04]} 10. Bf4 {[%emt 0:00:06]} Qe7 {[%emt 0:00:10]} 11. Re1 {[%emt 0:00:11]} Ng4
{[%emt 0:00:39]} 12. Bg5 {[%emt 0:01:23]} f6 {[%emt 0:00:55]} 13. Bf4 {[%emt 0:
00:11]} Nge5 {[%emt 0:02:07]} 14. Qc2 {[%emt 0:00:22]} a6 {[%emt 0:00:50]} 15.
a4 {[%emt 0:00:03]} g5 {[%emt 0:00:38]} 16. Bd2 {[%emt 0:01:14]} h6 {[%emt 0:
00:04]} 17. b3 {[%emt 0:00:57]} f5 {[%emt 0:00:18]} 18. Nxe5 {[%emt 0:00:42]}
Nxe5 {[%emt 0:00:24]} 19. f4 {[%emt 0:00:00]} gxf4 {[%emt 0:00:39]} 20. gxf4 {
[%emt 0:00:14]} Ng4 {[%emt 0:00:20]} 21. Qd3 {[%emt 0:01:09]} Bd7 {[%emt 0:00:
16]} 22. h3 {[%emt 0:01:33]} Nf6 {[%emt 0:00:11]} 23. Qg3 {[%emt 0:00:00]} Nh5
{[%emt 0:01:20]} 24. Qg6 {[%emt 0:00:50]} Nf6 {[%emt 0:00:35]} 25. e4 {[%emt 0:
02:11]} fxe4 {[%emt 0:00:29]} 26. Nxe4 {[%emt 0:00:17]} Be8 {[%emt 0:00:20]}
27. Qg3 {[%emt 0:02:20]} Nxe4 {[%emt 0:02:32]} 28. Rxe4 {[%emt 0:00:37]} Qf6 {
[%emt 0:00:00]} 29. Rae1 {[%emt 0:00:38]} Bf7 {[%emt 0:00:00]} 30. R1e3 {
[%emt 0:01:16]} Rae8 {[%emt 0:01:00]} 31. Bc3 {[%emt 0:00:14]} Qg6 {[%emt 0:00:
00]} 32. f5 {[%emt 0:00:49]} Qg5 {[%emt 0:00:53]} 33. h4 {[%emt 0:00:11]} 1-0

[Event "RUS-ch Rapid 2021"]
[Site "Sochi"]
[Date "2021.10.13"]
[Round "10.16"]
[White "Ivanov, Alexander Al."]
[Black "Afanasiev, Nikita"]
[Result "0-1"]
[ECO "B50"]
[WhiteElo "2400"]
[BlackElo "2560"]
[Annotator "RC"]
[PlyCount "132"]
[EventDate "2021.10.12"]
[EventType "swiss"]
[EventCountry "RUS"]
[SourceTitle "playchess.com"]
[Source "ChessBase"]
[SourceQuality "1"]
[TimeControl "900+10"]

1. e4 {[%emt 0:01:01]} g6 {[%emt 0:00:00]} 2. Nf3 {[%emt 0:00:07]} Bg7 {
[%emt 0:00:01]} 3. g3 {[%emt 0:00:03]} c5 {[%emt 0:00:11]} 4. Bg2 {[%emt 0:00:
03]} Nc6 {[%emt 0:00:00]} 5. O-O {[%emt 0:00:00]} e5 {[%emt 0:00:03]} 6. Nc3 {
[%emt 0:00:04]} Nge7 {[%emt 0:00:00]} 7. Nd5 {[%emt 0:00:03]} d6 {[%emt 0:00:
07]} 8. Nxe7 {[%emt 0:00:22]} Qxe7 {[%emt 0:00:05]} 9. d3 {[%emt 0:00:00]} O-O
{[%emt 0:00:00]} 10. h3 {[%emt 0:00:10]} f5 {[%emt 0:00:11]} 11. c3 {[%emt 0:
00:46]} Kh8 {[%emt 0:00:05]} 12. Bg5 {[%emt 0:00:24]} Qf7 {[%emt 0:00:05]} 13.
Bd2 {[%emt 0:00:09]} h6 {[%emt 0:00:17]} 14. Qc1 {[%emt 0:01:09]} Kh7 {[%emt 0:
00:26]} 15. Qe1 {[%emt 0:02:09]} Be6 {[%emt 0:00:53]} 16. b3 {[%emt 0:00:11]}
d5 {[%emt 0:01:02]} 17. Rc1 {[%emt 0:03:25]} Rad8 {[%emt 0:00:53]} 18. Kh2 {
[%emt 0:00:55]} Qd7 {[%emt 0:01:33]} 19. Rd1 {[%emt 0:00:47]} Qc8 {[%emt 0:00:
54]} 20. Qe2 {[%emt 0:01:05]} Rfe8 {[%emt 0:00:51]} 21. Bc1 {[%emt 0:00:27]} a5
{[%emt 0:00:20]} 22. Ba3 {[%emt 0:00:28]} b6 {[%emt 0:00:05]} 23. Rfe1 {
[%emt 0:00:35]} Qa6 {[%emt 0:00:46]} 24. exd5 {[%emt 0:01:09]} Bxd5 {[%emt 0:
00:16]} 25. c4 {[%emt 0:00:00]} Bxf3 {[%emt 0:00:24]} 26. Qxf3 {[%emt 0:00:05]}
Nd4 {[%emt 0:00:06]} 27. Qb7 {[%emt 0:00:05]} Qxb7 {[%emt 0:00:04]} 28. Bxb7 {
[%emt 0:00:06]} Nc2 {[%emt 0:00:00]} 29. Bc1 {[%emt 0:00:19]} Nxe1 {[%emt 0:00:
02]} 30. Rxe1 {[%emt 0:00:10]} Rxd3 {[%emt 0:00:03]} 31. Bd5 {[%emt 0:00:00]}
Rd8 {[%emt 0:00:01]} 32. Kg2 {[%emt 0:00:04]} e4 {[%emt 0:00:07]} 33. Bf4 {
[%emt 0:00:09]} Rd7 {[%emt 0:01:45]} 34. h4 {[%emt 0:00:06]} h5 {[%emt 0:00:17]
} 35. Re2 {[%emt 0:00:13]} Bf6 {[%emt 0:01:37]} 36. Be6 {[%emt 0:00:13]} Rd8 {
[%emt 0:00:02]} 37. Bd5 {[%emt 0:00:16]} Rd7 {[%emt 0:00:16]} 38. Be6 {[%emt 0:
00:03]} Re7 {[%emt 0:00:04]} 39. Bd5 {[%emt 0:00:00]} Kg7 {[%emt 0:00:03]} 40.
Bd6 {[%emt 0:00:33]} Rd7 {[%emt 0:01:19]} 41. Bf4 {[%emt 0:00:00]} Rf3 {
[%emt 0:00:37]} 42. Be6 {[%emt 0:00:53]} Rd1 {[%emt 0:00:15]} 43. Bd5 {[%emt 0:
00:12]} Rc3 {[%emt 0:00:50]} 44. Bd2 {[%emt 0:00:54]} Rf3 {[%emt 0:00:30]} 45.
Bf4 {[%emt 0:01:16]} Bxh4 {[%emt 0:00:06]} 46. Bc7 {[%emt 0:00:01]} Be7 {
[%emt 0:00:13]} 47. Bxb6 {[%emt 0:00:00]} Rc3 {[%emt 0:00:00]} 48. Bxa5 {
[%emt 0:00:14]} Rcc1 {[%emt 0:00:00]} 49. f3 {[%emt 0:00:45]} Rg1+ {[%emt 0:00:
03]} 50. Kh2 {[%emt 0:00:00]} Bd6 {[%emt 0:00:40]} 51. fxe4 {[%emt 0:00:32]}
Bxg3+ {[%emt 0:00:03]} 52. Kh3 {[%emt 0:00:00]} f4 {[%emt 0:00:34]} 53. e5 {
[%emt 0:00:56]} g5 {[%emt 0:00:01]} 54. Bf3 {[%emt 0:00:00]} g4+ {[%emt 0:00:
12]} 55. Bxg4 {[%emt 0:00:04]} hxg4+ {[%emt 0:00:00]} 56. Kxg4 {[%emt 0:00:01]}
Be1+ {[%emt 0:00:10]} 57. Kxf4 {[%emt 0:00:19]} Bxa5 {[%emt 0:00:02]} 58. Kf5 {
[%emt 0:00:03]} Bd8 {[%emt 0:00:12]} 59. Ke6 {[%emt 0:00:07]} Rg6+ {[%emt 0:00:
01]} 60. Kf5 {[%emt 0:00:32]} Be7 {[%emt 0:00:19]} 61. Rd2 {[%emt 0:00:10]} Kf7
{[%emt 0:00:17]} 62. a4 {[%emt 0:00:22]} Rg5+ {[%emt 0:00:10]} 63. Ke4 {
[%emt 0:00:02]} Ke6 {[%emt 0:00:04]} 64. a5 {[%emt 0:00:14]} Rxe5+ {[%emt 0:00:
02]} 65. Kd3 {[%emt 0:00:00]} Bg5 {[%emt 0:00:06]} 66. Re2 {[%emt 0:00:15]}
Rxe2 {[%emt 0:00:03]} 0-1

[Event "RUS-ch Rapid 2021"]
[Site "Sochi"]
[Date "2021.10.13"]
[Round "10.17"]
[White "Nozdrachev, Vladislav"]
[Black "Smirnov, Timofey"]
[Result "0-1"]
[ECO "C54"]
[WhiteElo "2495"]
[BlackElo "2409"]
[Annotator "ChessBase"]
[PlyCount "42"]
[EventDate "2021.10.12"]
[EventType "swiss"]
[EventCountry "RUS"]
[SourceTitle "playchess.com"]
[Source "ChessBase"]
[SourceQuality "1"]
[TimeControl "900+10"]

1. e4 {[%emt 0:00:00]} e5 {[%emt 0:00:00]} 2. Nf3 {[%emt 0:00:06]} Nc6 {
[%emt 0:00:02]} 3. Bc4 {[%emt 0:00:07]} Bc5 {[%emt 0:00:06]} 4. d3 {[%emt 0:00:
05]} Nf6 {[%emt 0:00:06]} 5. O-O {[%emt 0:00:00]} O-O {[%emt 0:00:02]} 6. c3 {
[%emt 0:00:04]} Bb6 {[%emt 0:00:17]} 7. Nbd2 {[%emt 0:00:18]} d6 {[%emt 0:00:
00]} 8. Bb3 {[%emt 0:00:00]} a6 {[%emt 0:00:23]} 9. Nc4 {[%emt 0:00:13]} Ba7 {
[%emt 0:00:00]} 10. Re1 {[%emt 0:00:15]} h6 {[%emt 0:01:28]} 11. Bc2 {[%emt 0:
00:57]} Be6 {[%emt 0:00:12]} 12. Ne3 {[%emt 0:00:00]} Ne7 {[%emt 0:00:10]} 13.
d4 {[%emt 0:00:04]} Ng6 {[%emt 0:00:00]} 14. Nf5 {[%emt 0:00:28]} Re8 {[%emt 0:
01:24]} 15. h3 {[%emt 0:00:11]} exd4 {[%emt 0:01:15]} 16. N3xd4 {[%emt 0:00:13]
} Bd7 {[%emt 0:00:16]} 17. Qf3 {[%emt 0:00:52]} d5 {[%emt 0:01:06]} 18. e5 {
[%emt 0:05:45]} Nxe5 {[%emt 0:02:32]} 19. Nxh6+ {[%emt 0:01:33]} Kf8 {[%emt 0:
00:06]} 20. Qg3 {[%emt 0:00:14]} Nh5 {[%emt 0:00:21]} 21. Qe3 {[%emt 0:00:53]}
Nc4 {[%emt 0:01:54]} 0-1

[Event "RUS-ch Rapid 2021"]
[Site "Sochi"]
[Date "2021.10.13"]
[Round "10.18"]
[White "Ivlev, Aleksey"]
[Black "Klukin, Kirill"]
[Result "1/2-1/2"]
[ECO "D37"]
[WhiteElo "2315"]
[BlackElo "2346"]
[Annotator "NA RC"]
[PlyCount "135"]
[EventDate "2021.10.12"]
[EventType "swiss"]
[EventCountry "RUS"]
[SourceTitle "playchess.com"]
[Source "ChessBase"]
[SourceQuality "1"]
[TimeControl "900+10"]

1. d4 {[%emt 0:00:00]} d5 {[%emt 0:00:09]} 2. c4 {[%emt 0:00:05]} e6 {[%emt 0:
00:00]} 3. Nf3 {[%emt 0:00:06]} a6 {[%emt 0:00:00]} 4. cxd5 {[%emt 0:00:00]}
exd5 {[%emt 0:00:04]} 5. Nc3 {[%emt 0:00:10]} Nf6 {[%emt 0:00:05]} 6. Bg5 {
[%emt 0:00:00]} Be6 {[%emt 0:00:03]} 7. e3 {[%emt 0:00:00]} Nbd7 {[%emt 0:00:
00]} 8. Bd3 {[%emt 0:00:01]} h6 {[%emt 0:00:00]} 9. Bf4 {[%emt 0:00:17]} g5 {
[%emt 0:00:12]} 10. Bg3 {[%emt 0:00:12]} Nh5 {[%emt 0:00:00]} 11. Be5 {[%emt 0:
01:10]} Ng7 {[%emt 0:00:00]} 12. h3 {[%emt 0:00:17]} Nxe5 {[%emt 0:00:25]} 13.
Nxe5 {[%emt 0:00:05]} Bd6 {[%emt 0:00:55]} 14. O-O {[%emt 0:00:17]} h5 {
[%emt 0:00:53]} 15. f4 {[%emt 0:00:25]} gxf4 {[%emt 0:00:58]} 16. exf4 {
[%emt 0:00:16]} Qh4 {[%emt 0:02:04]} 17. Qe1 {[%emt 0:01:17]} Qxe1 {[%emt 0:01:
39]} 18. Raxe1 {[%emt 0:00:00]} Bxe5 {[%emt 0:01:36]} 19. Rxe5 {[%emt 0:01:35]}
f6 {[%emt 0:01:25]} 20. Re3 {[%emt 0:00:12]} Kd7 {[%emt 0:00:39]} 21. Rfe1 {
[%emt 0:00:15]} Rae8 {[%emt 0:03:41]} 22. Bg6 {[%emt 0:00:13]} Reg8 {[%emt 0:
00:10]} 23. Bf7 {[%emt 0:01:46]} Re8 {[%emt 0:01:23]} 24. Bxe8+ {[%emt 0:00:53]
} Rxe8 {[%emt 0:00:04]} 25. g4 {[%emt 0:00:39]} hxg4 {[%emt 0:01:13]} 26. hxg4
{[%emt 0:00:00]} Bxg4 {[%emt 0:00:45]} 27. Rxe8 {[%emt 0:00:07]} Nxe8 {[%emt 0:
00:00]} 28. Nxd5 {[%emt 0:00:07]} Be6 {[%emt 0:00:01]} 29. Nc3 {[%emt 0:00:19]}
c6 {[%emt 0:00:06]} 30. Na4 {[%emt 0:00:28]} Nc7 {[%emt 0:00:45]} 31. Nc5+ {
[%emt 0:00:06]} Kd6 {[%emt 0:00:00]} 32. Nxb7+ {[%emt 0:00:24]} Kd5 {[%emt 0:
00:00]} 33. Nc5 {[%emt 0:00:29]} Bf5 {[%emt 0:00:01]} 34. Re7 {[%emt 0:00:24]}
Nb5 {[%emt 0:00:01]} 35. Nxa6 {[%emt 0:00:37]} Nxd4 {[%emt 0:00:03]} 36. Kf2 {
[%emt 0:00:42]} Bb1 {[%emt 0:00:20]} 37. b3 {[%emt 0:02:45]} c5 {[%emt 0:00:08]
} 38. Rc7 {[%emt 0:02:24]} Ne6 {[%emt 0:00:50]} 39. Rc8 {[%emt 0:01:21]} f5 {
[%emt 0:00:49]} 40. Nc7+ {[%emt 0:00:08]} Nxc7 {[%emt 0:00:01]} 41. Rxc7 {
[%emt 0:00:02]} Bxa2 {[%emt 0:00:01]} 42. Rb7 {[%emt 0:00:05]} Kd4 {[%emt 0:00:
14]} 43. Rb5 {[%emt 0:00:24]} Bb1 {[%emt 0:00:07]} 44. Rb8 {[%emt 0:00:17]} Be4
{[%emt 0:00:13]} 45. Kg3 {[%emt 0:00:08]} Kc3 {[%emt 0:00:25]} 46. Rb5 {
[%emt 0:00:08]} Kd4 {[%emt 0:00:08]} 47. Kh4 {[%emt 0:00:05]} Bd3 {[%emt 0:00:
00]} 48. Rb6 {[%emt 0:00:04]} Be4 {[%emt 0:00:14]} 49. Kg5 {[%emt 0:00:12]} Bc2
{[%emt 0:00:08]} 50. Rb8 {[%emt 0:00:57]} Kc3 {[%emt 0:00:08]} 51. Rb5 {
[%emt 0:00:04]} Kd4 {[%emt 0:00:05]} 52. Rb6 {[%emt 0:00:01]} Kc3 {[%emt 0:00:
15]} 53. Rb5 {[%emt 0:00:21]} Kd4 {[%emt 0:00:01]} 54. Kf6 {[%emt 0:00:15]} Bd3
{[%emt 0:00:05]} 55. Rb6 {[%emt 0:00:10]} Ke4 {[%emt 0:00:00]} 56. Rc6 {
[%emt 0:00:27]} Kd4 {[%emt 0:00:08]} 57. Rd6+ {[%emt 0:00:15]} Ke4 {[%emt 0:00:
19]} 58. Rxd3 {[%emt 0:00:10]} Kxd3 {[%emt 0:00:03]} 59. Ke5 {[%emt 0:00:09]}
Kc3 {[%emt 0:00:13]} 60. Kd5 {[%emt 0:00:03]} Kb4 {[%emt 0:00:11]} 61. Kd6 {
[%emt 0:00:13]} Kb5 {[%emt 0:00:02]} 62. Ke6 {[%emt 0:00:13]} Kb4 {[%emt 0:00:
05]} 63. Kd5 {[%emt 0:00:06]} Kb5 {[%emt 0:00:06]} 64. Ke6 {[%emt 0:00:14]} Kb4
{[%emt 0:00:00]} 65. Kd6 {[%emt 0:00:07]} Kb5 {[%emt 0:00:02]} 66. Ke5 {
[%emt 0:00:13]} Kb4 {[%emt 0:00:00]} 67. Kd5 {[%emt 0:00:11]} Kb5 {[%emt 0:00:
02]} 68. Kd6 {[%emt 0:00:08]} 1/2-1/2

[Event "RUS-ch Rapid 2021"]
[Site "Sochi"]
[Date "2021.10.13"]
[Round "10.19"]
[White "Zhakamukhov, Eduard"]
[Black "Vastrukhin, Oleg"]
[Result "0-1"]
[ECO "C09"]
[WhiteElo "2008"]
[BlackElo "2382"]
[Annotator "NA"]
[PlyCount "74"]
[EventDate "2021.10.12"]
[EventType "swiss"]
[EventCountry "RUS"]
[SourceTitle "playchess.com"]
[Source "ChessBase"]
[SourceQuality "1"]
[TimeControl "900+10"]

1. e4 {[%emt 0:00:00]} e6 {[%emt 0:00:00]} 2. d4 {[%emt 0:00:05]} d5 {[%emt 0:
00:02]} 3. Nd2 {[%emt 0:00:00]} c5 {[%emt 0:00:07]} 4. Ngf3 {[%emt 0:00:00]}
Nc6 {[%emt 0:00:00]} 5. exd5 {[%emt 0:00:03]} exd5 {[%emt 0:00:00]} 6. Bb5 {
[%emt 0:00:00]} Bd6 {[%emt 0:00:00]} 7. dxc5 {[%emt 0:00:02]} Bxc5 {[%emt 0:00:
01]} 8. O-O {[%emt 0:00:04]} Nge7 {[%emt 0:00:01]} 9. Nb3 {[%emt 0:00:02]} Bb6
{[%emt 0:00:02]} 10. Bg5 {[%emt 0:00:07]} O-O {[%emt 0:00:08]} 11. h3 {[%emt 0:
00:22]} h6 {[%emt 0:00:10]} 12. Bh4 {[%emt 0:00:10]} Qd6 {[%emt 0:00:08]} 13.
Bxe7 {[%emt 0:00:55]} Nxe7 {[%emt 0:00:04]} 14. c3 {[%emt 0:01:07]} Ng6 {
[%emt 0:00:12]} 15. Nfd4 {[%emt 0:01:16]} Nf4 {[%emt 0:00:45]} 16. Qf3 {
[%emt 0:03:30]} Bc7 {[%emt 0:00:07]} 17. Qg3 {[%emt 0:02:30]} a6 {[%emt 0:00:
06]} 18. Be2 {[%emt 0:00:03]} Qf6 {[%emt 0:01:10]} 19. Kh1 {[%emt 0:02:53]} Bd6
{[%emt 0:00:37]} 20. Bg4 {[%emt 0:00:49]} Ng6 {[%emt 0:01:23]} 21. Qf3 {
[%emt 0:00:11]} Qe5 {[%emt 0:00:01]} 22. g3 {[%emt 0:00:25]} f5 {[%emt 0:01:44]
} 23. Bh5 {[%emt 0:00:06]} Ne7 {[%emt 0:00:01]} 24. Qe2 {[%emt 0:00:45]} Qf6 {
[%emt 0:01:09]} 25. f4 {[%emt 0:00:05]} Bd7 {[%emt 0:00:17]} 26. Bf3 {[%emt 0:
00:25]} g5 {[%emt 0:01:10]} 27. Bg2 {[%emt 0:00:14]} Rae8 {[%emt 0:00:15]} 28.
Qf2 {[%emt 0:00:09]} gxf4 {[%emt 0:00:56]} 29. gxf4 {[%emt 0:00:00]} Kh7 {
[%emt 0:00:00]} 30. Nc1 {[%emt 0:00:45]} Ng6 {[%emt 0:00:25]} 31. Nd3 {[%emt 0:
00:03]} Re4 {[%emt 0:00:00]} 32. Rae1 {[%emt 0:00:46]} Rg8 {[%emt 0:00:08]} 33.
Ne5 {[%emt 0:00:50]} Nxe5 {[%emt 0:01:31]} 34. Bxe4 {[%emt 0:00:17]} dxe4 {
[%emt 0:01:00]} 35. fxe5 {[%emt 0:00:00]} Qxe5 {[%emt 0:00:01]} 36. Nxf5 {
[%emt 0:00:54]} e3 {[%emt 0:00:26]} 37. Nxe3 {[%emt 0:01:12]} Bc6+ {[%emt 0:00:
00]} 0-1

[Event "RUS-ch Rapid 2021"]
[Site "Sochi"]
[Date "2021.10.13"]
[Round "10.20"]
[White "Kezin, Roman"]
[Black "Nuristani, Iman"]
[Result "1-0"]
[ECO "A58"]
[WhiteElo "2492"]
[BlackElo "2171"]
[Annotator "RC"]
[PlyCount "93"]
[EventDate "2021.10.12"]
[EventType "swiss"]
[EventCountry "RUS"]
[SourceTitle "playchess.com"]
[Source "ChessBase"]
[SourceQuality "1"]
[TimeControl "900+10"]

1. d4 {[%emt 0:00:00]} Nf6 {[%emt 0:00:00]} 2. c4 {[%emt 0:00:00]} c5 {[%emt 0:
00:19]} 3. d5 {[%emt 0:00:08]} b5 {[%emt 0:00:00]} 4. Nf3 {[%emt 0:00:00]} g6 {
[%emt 0:00:04]} 5. cxb5 {[%emt 0:00:04]} a6 {[%emt 0:00:00]} 6. bxa6 {[%emt 0:
00:28]} Bxa6 {[%emt 0:00:00]} 7. Nc3 {[%emt 0:00:00]} Bg7 {[%emt 0:00:00]} 8.
g3 {[%emt 0:00:00]} O-O {[%emt 0:00:00]} 9. Bg2 {[%emt 0:00:00]} d6 {[%emt 0:
00:00]} 10. O-O {[%emt 0:00:00]} Nbd7 {[%emt 0:00:00]} 11. Rb1 {[%emt 0:00:00]}
Qa5 {[%emt 0:01:04]} 12. Bd2 {[%emt 0:00:02]} Bb7 {[%emt 0:01:00]} 13. Qc2 {
[%emt 0:01:42]} Ng4 {[%emt 0:02:12]} 14. h3 {[%emt 0:00:08]} Nge5 {[%emt 0:00:
01]} 15. Nxe5 {[%emt 0:00:00]} Nxe5 {[%emt 0:00:12]} 16. b3 {[%emt 0:00:01]}
Qa3 {[%emt 0:03:08]} 17. Bc1 {[%emt 0:00:22]} Qa6 {[%emt 0:01:36]} 18. a4 {
[%emt 0:00:07]} Bc8 {[%emt 0:01:39]} 19. Rd1 {[%emt 0:02:09]} Rb8 {[%emt 0:00:
55]} 20. Kh2 {[%emt 0:00:12]} Nd7 {[%emt 0:00:43]} 21. e4 {[%emt 0:00:32]} f5 {
[%emt 0:00:54]} 22. exf5 {[%emt 0:01:14]} Rxf5 {[%emt 0:00:00]} 23. f4 {
[%emt 0:00:00]} Nb6 {[%emt 0:00:08]} 24. g4 {[%emt 0:01:10]} Rf8 {[%emt 0:00:
47]} 25. Ne4 {[%emt 0:00:33]} Bd7 {[%emt 0:00:00]} 26. Be3 {[%emt 0:00:51]} c4
{[%emt 0:00:49]} 27. Qe2 {[%emt 0:00:00]} Qa5 {[%emt 0:00:18]} 28. bxc4 {
[%emt 0:00:05]} Nxa4 {[%emt 0:00:10]} 29. Qc2 {[%emt 0:01:00]} Qc7 {[%emt 0:00:
22]} 30. Rdc1 {[%emt 0:00:24]} Nc5 {[%emt 0:00:57]} 31. Nxc5 {[%emt 0:00:21]}
dxc5 {[%emt 0:00:00]} 32. Kh1 {[%emt 0:00:38]} Qd6 {[%emt 0:00:47]} 33. Rxb8 {
[%emt 0:01:18]} Rxb8 {[%emt 0:00:05]} 34. Rb1 {[%emt 0:00:00]} Rf8 {[%emt 0:00:
10]} 35. Qf2 {[%emt 0:00:26]} Rc8 {[%emt 0:01:14]} 36. Rb7 {[%emt 0:00:16]} Be8
{[%emt 0:00:36]} 37. Qa2 {[%emt 0:00:28]} Bd4 {[%emt 0:00:23]} 38. Bc1 {
[%emt 0:00:28]} Rb8 {[%emt 0:00:20]} 39. Qa7 {[%emt 0:01:33]} Rxb7 {[%emt 0:00:
00]} 40. Qxb7 {[%emt 0:00:00]} Bd7 {[%emt 0:00:44]} 41. Bf3 {[%emt 0:01:52]} g5
{[%emt 0:00:13]} 42. Qb1 {[%emt 0:02:26]} gxf4 {[%emt 0:00:08]} 43. Qe4 {
[%emt 0:00:00]} Qe5 {[%emt 0:00:12]} 44. Bxf4 {[%emt 0:00:00]} Qg7 {[%emt 0:00:
10]} 45. d6 {[%emt 0:00:18]} exd6 {[%emt 0:00:06]} 46. Qa8+ {[%emt 0:00:23]}
Qf8 {[%emt 0:00:09]} 47. Bd5+ {[%emt 0:00:01]} 1-0

[Event "RUS-ch Rapid 2021"]
[Site "Sochi"]
[Date "2021.10.13"]
[Round "10.21"]
[White "Derjabin, Ilja"]
[Black "Khanin, Semen"]
[Result "1/2-1/2"]
[ECO "D36"]
[WhiteElo "2353"]
[BlackElo "2521"]
[Annotator "ChessBase"]
[PlyCount "84"]
[EventDate "2021.10.12"]
[EventType "swiss"]
[EventCountry "RUS"]
[SourceTitle "playchess.com"]
[Source "ChessBase"]
[SourceQuality "1"]
[TimeControl "900+10"]

1. d4 {[%emt 0:00:00]} Nf6 {[%emt 0:00:04]} 2. c4 {[%emt 0:00:03]} e6 {[%emt 0:
00:00]} 3. Nc3 {[%emt 0:00:07]} d5 {[%emt 0:00:00]} 4. cxd5 {[%emt 0:00:14]}
exd5 {[%emt 0:00:06]} 5. Bg5 {[%emt 0:00:00]} c6 {[%emt 0:00:03]} 6. e3 {
[%emt 0:00:06]} Nbd7 {[%emt 0:00:05]} 7. Bd3 {[%emt 0:00:14]} Bd6 {[%emt 0:00:
00]} 8. Nge2 {[%emt 0:00:04]} Nf8 {[%emt 0:00:14]} 9. Qc2 {[%emt 0:03:05]} Ng6
{[%emt 0:00:03]} 10. O-O-O {[%emt 0:02:19]} h6 {[%emt 0:00:00]} 11. Bxg6 {
[%emt 0:00:28]} hxg5 {[%emt 0:00:00]} 12. Bd3 {[%emt 0:00:02]} Qe7 {[%emt 0:02:
57]} 13. Ng3 {[%emt 0:00:13]} Be6 {[%emt 0:00:48]} 14. Nf5 {[%emt 0:01:37]}
Bxf5 {[%emt 0:00:00]} 15. Bxf5 {[%emt 0:00:00]} g6 {[%emt 0:00:04]} 16. Bd3 {
[%emt 0:00:08]} O-O-O {[%emt 0:00:06]} 17. h3 {[%emt 0:00:35]} Kb8 {[%emt 0:00:
00]} 18. Kb1 {[%emt 0:00:15]} Rh4 {[%emt 0:00:17]} 19. Rhe1 {[%emt 0:00:03]}
Ne4 {[%emt 0:01:15]} 20. Bxe4 {[%emt 0:00:19]} dxe4 {[%emt 0:00:00]} 21. d5 {
[%emt 0:01:48]} c5 {[%emt 0:01:00]} 22. g3 {[%emt 0:00:20]} Rxh3 {[%emt 0:00:
00]} 23. Qxe4 {[%emt 0:00:02]} Qf6 {[%emt 0:01:01]} 24. Re2 {[%emt 0:01:10]}
Rh2 {[%emt 0:00:04]} 25. Qc2 {[%emt 0:00:02]} g4 {[%emt 0:01:08]} 26. f4 {
[%emt 0:01:35]} Rxe2 {[%emt 0:02:22]} 27. Qxe2 {[%emt 0:00:00]} g5 {[%emt 0:00:
05]} 28. Qxg4 {[%emt 0:00:27]} gxf4 {[%emt 0:00:03]} 29. gxf4 {[%emt 0:00:19]}
Re8 {[%emt 0:00:03]} 30. Qf3 {[%emt 0:01:32]} Qf5+ {[%emt 0:01:50]} 31. Ka1 {
[%emt 0:00:00]} Be5 {[%emt 0:00:40]} 32. d6 {[%emt 0:01:18]} Bxc3 {[%emt 0:00:
00]} 33. bxc3 {[%emt 0:00:00]} Qc2 {[%emt 0:00:11]} 34. e4 {[%emt 0:00:03]} c4
{[%emt 0:00:38]} 35. e5 {[%emt 0:00:12]} Rh8 {[%emt 0:00:05]} 36. d7 {[%emt 0:
00:16]} Rd8 {[%emt 0:00:00]} 37. Qd5 {[%emt 0:00:34]} Qxc3+ {[%emt 0:00:06]}
38. Kb1 {[%emt 0:00:00]} Qb4+ {[%emt 0:00:42]} 39. Kc2 {[%emt 0:00:04]} Qa4+ {
[%emt 0:01:48]} 40. Kb2 {[%emt 0:00:05]} Qb4+ {[%emt 0:00:20]} 41. Kc2 {
[%emt 0:00:00]} Qa4+ {[%emt 0:00:30]} 42. Kb2 {[%emt 0:00:00]} Qb4+ {[%emt 0:
00:41]} 1/2-1/2

[Event "RUS-ch Rapid 2021"]
[Site "Sochi"]
[Date "2021.10.13"]
[Round "10.22"]
[White "Rodin, Dmitrij"]
[Black "Savchenko, Boris"]
[Result "0-1"]
[ECO "B01"]
[WhiteElo "2359"]
[BlackElo "2535"]
[Annotator "ChessBase"]
[PlyCount "60"]
[EventDate "2021.10.12"]
[EventType "swiss"]
[EventCountry "RUS"]
[SourceTitle "playchess.com"]
[Source "ChessBase"]
[SourceQuality "1"]
[TimeControl "900+10"]

1. e4 {[%emt 0:00:00]} d5 {[%emt 0:00:04]} 2. exd5 {[%emt 0:00:02]} Qxd5 {
[%emt 0:00:00]} 3. Nc3 {[%emt 0:00:00]} Qa5 {[%emt 0:00:02]} 4. d4 {[%emt 0:00:
13]} Nf6 {[%emt 0:00:01]} 5. Nf3 {[%emt 0:00:00]} Bf5 {[%emt 0:00:00]} 6. Bc4 {
[%emt 0:00:06]} Nc6 {[%emt 0:00:05]} 7. O-O {[%emt 0:00:50]} e6 {[%emt 0:00:34]
} 8. Bb5 {[%emt 0:01:20]} Bb4 {[%emt 0:01:10]} 9. Qe2 {[%emt 0:01:47]} O-O {
[%emt 0:00:29]} 10. Bd2 {[%emt 0:00:11]} Rfd8 {[%emt 0:05:18]} 11. a3 {[%emt 0:
01:02]} Bxc3 {[%emt 0:00:16]} 12. bxc3 {[%emt 0:00:02]} Ne4 {[%emt 0:00:50]}
13. a4 {[%emt 0:01:29]} a6 {[%emt 0:01:30]} 14. Bxc6 {[%emt 0:02:35]} Nxd2 {
[%emt 0:00:06]} 15. Qxd2 {[%emt 0:01:25]} bxc6 {[%emt 0:00:00]} 16. Rfe1 {
[%emt 0:00:11]} c5 {[%emt 0:00:05]} 17. Qf4 {[%emt 0:00:09]} Qxc3 {[%emt 0:00:
15]} 18. g4 {[%emt 0:01:11]} Bg6 {[%emt 0:01:17]} 19. h4 {[%emt 0:00:00]} cxd4
{[%emt 0:00:23]} 20. h5 {[%emt 0:00:47]} Bxc2 {[%emt 0:00:00]} 21. Ng5 {
[%emt 0:00:06]} Rd7 {[%emt 0:00:18]} 22. h6 {[%emt 0:01:01]} gxh6 {[%emt 0:01:
35]} 23. Nf3 {[%emt 0:00:52]} d3 {[%emt 0:00:05]} 24. Nd2 {[%emt 0:00:06]} Rd4
{[%emt 0:00:11]} 25. Qf3 {[%emt 0:00:46]} Rad8 {[%emt 0:00:06]} 26. Rad1 {
[%emt 0:00:28]} Qb4 {[%emt 0:00:10]} 27. Kh2 {[%emt 0:00:28]} Rxg4 {[%emt 0:00:
27]} 28. Ne4 {[%emt 0:00:18]} Bxd1 {[%emt 0:00:24]} 29. Nf6+ {[%emt 0:00:03]}
Kf8 {[%emt 0:00:25]} 30. Nxh7+ {[%emt 0:01:33]} Kg7 {[%emt 0:00:03]} 0-1